bitfinex-derivatives/quotes_BNBF0:USTF0_20250529
["timestamp","ask_amount","ask_price","bid_price","bid_amount"]
[1748560281061,0.95083468,677.31,676.36,0.29570051]
[1748560281267,0.95084363,677.3,676.36,0.29570051]
[1748560281463,0.95084363,677.29,676.36,0.29570051]
[1748560281664,0.95084363,677.28,676.36,0.29570051]
[1748560281862,0.95084363,677.27,676.36,0.29570051]
[1748560282065,0.43472556,677.38,676.36,0.29570051]
[1748560282066,0.95250416,677.26,676.36,0.29570051]
[1748560282267,0.9525136,677.25,676.36,0.29570051]
[1748560282563,0.43376201,677.61,676.36,0.29570051]
[1748560282963,1.3873803,677.6,676.47,0.46978049]
[1748560283166,1.3873803,677.59,676.47,0.46978049]
[1748560283365,1.3873803,677.58,676.47,0.46978049]
[1748560283563,1.3873803,677.57,676.47,0.46978049]
[1748560283871,1.38675914,677.56,676.48,0.46978049]
[1748560284066,1.38677078,677.55,676.48,0.46978049]
[1748560284266,1.38677386,677.54,676.48,0.46978049]
[1748560284468,0.43443464,677.53,676.48,0.46978049]
[1748560284668,0.43444195,677.52,676.47,0.46978049]
[1748560284868,1.38678504,677.51,676.47,0.46978049]
[1748560285068,1.38678504,677.5,676.47,0.46978049]
[1748560285271,1.38721272,677.49,676.53,0.46978049]
[1748560285470,1.38724133,677.48,676.55,0.46978049]
[1748560285665,1.38724133,677.47,676.55,0.46978049]
[1748560285972,0.43376201,677.61,676.54,0.46978049]
[1748560286163,1.38728388,677.6,676.55,0.46978049]
[1748560286469,1.88527714,677.59,676.36,0.29570051]
[1748560286667,1.38727714,677.58,676.36,0.29570051]
[1748560286866,1.38727955,677.57,676.36,0.29570051]
[1748560287068,1.38727955,677.56,676.36,0.29570051]
[1748560287266,1.38727955,677.55,676.36,0.29570051]
[1748560287469,1.38727955,677.54,676.36,0.29570051]
[1748560287666,1.38729866,677.53,676.36,0.29570051]
[1748560287970,1.38732059,677.52,676.36,0.29570051]
[1748560288166,1.38732059,677.51,676.36,0.29570051]
[1748560288366,1.38732059,677.5,676.36,0.29570051]
[1748560288566,1.38732059,677.49,676.36,0.29570051]
[1748560288767,1.38730729,677.48,676.36,0.29570051]
[1748560288970,1.38730522,677.47,676.36,0.29570051]
[1748560289171,0.95285553,677.46,676.36,0.29570051]
[1748560289373,0.498,677.59,676.36,0.29570051]
[1748560289570,0.498,677.59,676.36,0.765481]
[1748560289871,0.43445229,677.58,676.36,0.765481]
[1748560290073,0.95282778,677.57,676.36,0.765481]
[1748560290266,0.498,677.59,676.36,0.765481]
[1748560290674,0.43444895,677.58,676.36,0.765481]
[1748560290870,1.38726939,677.57,676.36,0.765481]
[1748560291071,1.38726939,677.56,676.36,0.765481]
[1748560291371,1.38721797,677.55,676.36,0.765481]
[1748560291568,1.38721797,677.54,676.36,0.765481]
[1748560291771,1.38720195,677.53,676.36,0.765481]
[1748560291972,0.498,677.59,676.36,0.765481]
[1748560292268,1.38691045,677.58,676.37,0.46978049]
[1748560292573,1.38691045,677.57,676.38,0.29569177]
[1748560292770,1.38691045,677.56,676.38,0.29569177]
[1748560292969,1.38691045,677.55,676.38,0.29569177]
[1748560293170,1.38691045,677.54,676.38,0.29569177]
[1748560293373,1.38680856,677.53,676.38,0.29569177]
[1748560293574,1.38652453,677.52,676.38,0.29569177]
[1748560293772,1.38652453,677.51,676.38,0.29569177]
[1748560294074,1.38652453,677.5,676.38,0.29569177]
[1748560294275,1.38652453,677.49,676.38,0.29569177]
[1748560294576,0.498,677.59,676.38,0.29569177]
[1748560294776,1.3865298,677.58,676.38,0.29569177]
[1748560294974,1.3865298,677.57,676.38,0.29569177]
[1748560295276,1.38650659,677.56,676.38,0.29569177]
[1748560295476,1.38650659,677.55,676.38,0.29569177]
[1748560295770,1.38650659,677.54,676.38,0.29569177]
[1748560295976,1.38649982,677.53,676.38,0.29569177]
[1748560296177,1.38649982,677.52,676.47,0.46978049]
[1748560296375,1.38654595,677.51,676.47,0.46978049]
[1748560296676,1.38654586,677.5,676.47,0.46978049]
[1748560296871,1.38654586,677.49,676.47,0.46978049]
[1748560297172,0.95232778,677.48,676.47,0.46978049]
[1748560297477,0.43420956,677.47,676.48,0.46978049]
[1748560297679,1.3865477,677.46,676.48,0.46978049]
[1748560297876,1.3865477,677.45,676.48,0.46978049]
[1748560298072,1.386413,677.44,676.48,0.46978049]
[1748560298278,0.498,677.59,676.48,0.46978049]
[1748560298279,0.95220059,677.43,676.48,0.46978049]
[1748560298474,0.43416016,677.57,676.48,0.46978049]
[1748560298674,1.38633552,677.56,676.48,0.46978049]
[1748560298876,1.38633552,677.55,676.48,0.46978049]
[1748560299077,1.38633552,677.54,676.48,0.46978049]
[1748560299278,1.38633552,677.53,676.48,0.46978049]
[1748560299579,0.498,677.59,676.47,0.46978049]
[1748560299580,1.38633552,677.52,676.47,0.46978049]
[1748560299774,0.95218325,677.51,676.47,0.46978049]
[1748560299979,1.3863508,677.5,676.47,0.46978049]
[1748560300179,1.3863508,677.49,676.47,0.46978049]
[1748560300379,1.3863508,677.48,676.47,0.46978049]
[1748560300580,0.43416916,677.47,676.47,0.46978049]
[1748560300780,0.43416512,677.46,676.47,0.46978049]
[1748560300981,0.498,677.59,676.47,0.46978049]
[1748560301279,1.38637622,677.58,676.48,0.46978049]
[1748560301482,1.3867455,677.57,676.47,0.46978049]
[1748560301681,1.3867455,677.56,676.47,0.46978049]
[1748560301876,1.3867455,677.55,676.47,0.46978049]
[1748560302076,1.3867455,677.54,676.46,0.46978049]
[1748560302277,1.38685414,677.53,676.46,0.46978049]
[1748560302503,0.498,677.59,676.38,0.29569177]
[1748560302504,1.38687531,677.52,676.49,0.46978049]
[1748560302783,1.38687105,677.51,676.48,0.46978049]
[1748560302976,1.38687105,677.5,676.48,0.46978049]
[1748560303178,1.38688638,677.49,676.48,0.46978049]
[1748560303378,1.38688638,677.48,676.48,0.46978049]
[1748560303581,1.38691008,677.47,676.48,0.46978049]
[1748560303779,1.38691008,677.46,676.48,0.46978049]
[1748560303984,1.386909,677.45,676.48,0.46978049]
[1748560304180,1.38690984,677.44,676.48,0.46978049]
[1748560304378,1.38690848,677.43,676.38,0.29569177]
[1748560304579,0.95255689,677.42,676.38,0.29569177]
[1748560304778,0.498,677.59,676.38,0.29569177]
[1748560304779,0.95258501,677.41,676.38,0.29569177]
[1748560304978,0.95258501,677.4,676.38,0.29569177]
[1748560305181,0.95258501,677.39,676.38,0.29569177]
[1748560305483,0.95260064,677.38,676.38,0.29569177]
[1748560305783,0.95260064,677.37,676.38,0.29569177]
[1748560305983,0.95257168,677.36,676.38,0.29569177]
[1748560306285,0.9525795,677.35,676.38,0.29569177]
[1748560306578,0.9525795,677.34,676.38,0.29569177]
[1748560306786,0.95259747,677.33,676.38,0.29569177]
[1748560306978,0.498,677.59,676.38,0.29569177]
[1748560306979,0.95259747,677.32,676.38,0.29569177]
[1748560307181,0.95259747,677.31,676.38,0.29569177]
[1748560307378,0.95259747,677.3,676.38,0.29569177]
[1748560307582,0.95259256,677.29,676.38,0.29569177]
[1748560307781,0.95259256,677.28,676.38,0.29569177]
[1748560307981,0.95259256,677.27,676.38,0.29569177]
[1748560308179,0.498,677.59,676.38,0.29569177]
[1748560308180,0.95258806,677.26,676.38,0.29569177]
[1748560308387,0.95258806,677.25,676.38,0.29569177]
[1748560308586,0.95261322,677.24,676.38,0.29569177]
[1748560308885,0.95261322,677.23,676.38,0.29569177]
[1748560309084,0.95261322,677.22,676.38,0.29569177]
[1748560309281,0.95258658,677.21,676.38,0.29569177]
[1748560309482,0.95258658,677.2,676.38,0.76547226]
[1748560309682,0.43376201,677.61,676.38,0.76547226]
[1748560309880,1.38701754,677.6,676.38,0.76547226]
[1748560310085,1.38701754,677.59,676.38,0.76547226]
[1748560310282,1.38701754,677.58,676.38,0.76547226]
[1748560310490,1.38701754,677.57,676.39,0.46978049]
[1748560310685,1.38701754,677.56,676.39,0.46978049]
[1748560310883,1.38699726,677.55,676.39,0.46978049]
[1748560311086,1.38699726,677.54,676.39,0.46978049]
[1748560311291,1.38694625,677.53,676.38,0.29569177]
[1748560311487,1.38694625,677.52,676.38,0.29569177]
[1748560311692,1.38694625,677.51,676.38,0.29569177]
[1748560311893,1.38694625,677.5,676.38,0.29569177]
[1748560312094,1.38698736,677.49,676.38,0.29569177]
[1748560312289,1.38698736,677.48,676.38,0.29569177]
[1748560312488,1.38698736,677.47,676.38,0.29569177]
[1748560312689,1.38698736,677.46,676.38,0.29569177]
[1748560312889,1.38698736,677.45,676.38,0.29569177]
[1748560313089,1.38698736,677.44,676.38,0.29569177]
[1748560313289,1.38698736,677.43,676.38,0.29569177]
[1748560313489,1.38698736,677.42,676.38,0.29569177]
[1748560313793,1.38698736,677.41,676.38,0.29569177]
[1748560313990,1.38698736,677.4,676.38,0.29569177]
[1748560314190,1.38698736,677.39,676.41,0.46978049]
[1748560314393,0.33,677.45,676.38,0.29569177]
[1748560314394,0.95259552,677.38,676.43,0.46978049]
[1748560314590,0.43444164,677.43,676.43,0.46978049]
[1748560314894,1.38715017,677.42,676.43,0.46978049]
[1748560315088,0.43444164,677.41,676.43,0.46978049]
[1748560315289,1.38714893,677.4,676.43,0.46978049]
[1748560315491,1.38714893,677.39,676.44,0.46978049]
[1748560315690,1.38714893,677.38,676.45,0.46978049]
[1748560315893,0.95270729,677.37,676.45,0.46978049]
[1748560316093,0.95270729,677.36,676.45,0.46978049]
[1748560316294,0.95270729,677.35,676.45,0.46978049]
[1748560316591,0.95270729,677.34,676.45,0.46978049]
[1748560316791,0.95270729,677.33,676.45,0.46978049]
[1748560316994,0.33,677.45,676.45,0.46978049]
[1748560316995,0.95270729,677.32,676.45,0.46978049]
[1748560317192,0.95270729,677.31,676.38,0.29569177]
[1748560317392,0.9528852,677.3,676.38,0.29569177]
[1748560317595,0.9528852,677.29,676.38,0.29569177]
[1748560317793,0.95290935,677.28,676.38,0.29569177]
[1748560317997,0.95290935,677.27,676.38,0.29569177]
[1748560318194,0.95295984,677.26,676.38,0.29569177]
[1748560318394,0.95295984,677.25,676.38,0.29569177]
[1748560318594,0.95295984,677.24,676.38,0.29569177]
[1748560318894,0.95295984,677.23,676.38,0.29569177]
[1748560319094,0.33,677.45,676.38,0.29569177]
[1748560319095,0.95295984,677.22,676.38,0.29569177]
[1748560319302,0.95295984,677.21,676.38,0.29569177]
[1748560319599,0.95295984,677.2,676.38,0.29569177]
[1748560319801,0.95295984,677.19,676.38,0.29569177]
[1748560319997,0.95295984,677.18,676.38,0.29569177]
[1748560320201,0.9529863,677.17,676.38,0.29569177]
[1748560320400,0.9529863,677.16,676.38,0.29569177]
[1748560320599,0.9529863,677.15,676.38,0.29569177]
[1748560320803,0.33,677.45,676.38,0.29569177]
[1748560320804,0.9529863,677.14,676.38,0.29569177]
[1748560320998,0.9529863,677.13,676.38,0.29569177]
[1748560321304,0.9529863,677.12,676.38,0.29569177]
[1748560321498,0.9529863,677.11,676.38,0.29569177]
[1748560321703,0.95300317,677.1,676.38,0.29569177]
[1748560321902,0.95300317,677.09,676.38,0.29569177]
[1748560322106,0.95300317,677.08,676.38,0.29569177]
[1748560322307,0.33,677.45,676.38,0.29569177]
[1748560322507,1.38749448,677.44,676.38,0.29569177]
[1748560322801,0.33,677.45,676.38,0.29569177]
[1748560322802,1.38749448,677.43,676.38,0.29569177]
[1748560323004,1.38749448,677.42,676.38,0.29569177]
[1748560323206,1.38749448,677.41,676.38,0.29569177]
[1748560323406,0.43447819,677.4,676.38,0.29569177]
[1748560323606,0.95265003,677.39,676.38,0.29569177]
[1748560323907,1.38711602,677.38,676.38,0.29569177]
[1748560324102,1.38711602,677.37,676.38,0.29569177]
[1748560324307,1.38711602,677.36,676.38,0.29569177]
[1748560324511,1.38670064,677.35,676.38,0.29569177]
[1748560324708,0.95224181,677.34,676.38,0.29569177]
[1748560325007,0.43376201,677.61,676.38,0.29569177]
[1748560325008,0.9522049,677.33,676.38,0.29569177]
[1748560325205,1.38663407,677.32,676.38,0.29569177]
[1748560325401,1.38663407,677.31,676.38,0.29569177]
[1748560325603,0.43376201,677.61,676.38,0.29569177]
[1748560325604,1.38663407,677.3,676.38,0.29569177]
[1748560325803,1.38663407,677.29,676.38,0.29569177]
[1748560326107,1.38663407,677.28,676.38,0.29569177]
[1748560326310,0.95190395,677.27,676.38,0.29569177]
[1748560326511,0.43442363,677.59,676.38,0.29569177]
[1748560326810,1.68143319,677.58,676.38,0.29569177]
[1748560327110,1.3862651,677.57,676.38,0.29569177]
[1748560327310,1.3862651,677.56,676.38,0.29569177]
[1748560327613,1.3862651,677.55,676.38,0.29569177]
[1748560327809,1.3862651,677.54,676.38,0.29569177]
[1748560328110,1.38662469,677.53,676.38,0.29569177]
[1748560328308,1.38662643,677.52,676.38,0.29569177]
[1748560328508,1.38661487,677.51,676.38,0.29569177]
[1748560328712,1.38661487,677.5,676.38,0.29569177]
[1748560328913,1.38663119,677.49,676.38,0.29569177]
[1748560329212,1.38657443,677.48,676.38,0.29569177]
[1748560329407,1.38656369,677.47,676.38,0.29569177]
[1748560329608,1.38656369,677.46,676.38,0.29569177]
[1748560329810,0.453,677.5,676.38,0.29569177]
[1748560329811,1.38656369,677.45,676.38,0.29569177]
[1748560330009,1.38656369,677.44,676.38,0.29569177]
[1748560330208,1.38652728,677.43,676.38,0.29569177]
[1748560330412,1.38651797,677.42,676.38,0.29569177]
[1748560330611,1.3864359,677.41,676.38,0.29569177]
[1748560330813,1.38643163,677.4,676.38,0.29569177]
[1748560331013,1.38643163,677.39,676.38,0.29569177]
[1748560331210,1.38643163,677.38,676.38,0.29569177]
[1748560331411,1.3864104,677.37,676.38,0.29569177]
[1748560331611,1.3864104,677.36,676.38,0.29569177]
[1748560331815,1.38635621,677.35,676.38,0.29569177]
[1748560332115,1.38635621,677.34,676.38,0.29569177]
[1748560332415,1.38635621,677.33,676.38,0.29569177]
[1748560332617,1.38635621,677.32,676.38,0.29569177]
[1748560332810,1.38635621,677.31,676.38,0.29569177]
[1748560333110,1.38635621,677.3,676.38,0.29569177]
[1748560333310,1.38608748,677.29,676.38,0.29569177]
[1748560333515,0.95174576,677.28,676.38,0.29569177]
[1748560333711,0.95176009,677.27,676.38,0.29569177]
[1748560333916,0.95176009,677.26,676.38,0.29569177]
[1748560334115,0.95176009,677.25,676.38,0.29569177]
[1748560334319,0.95176009,677.24,676.38,0.29569177]
[1748560334519,0.95176009,677.23,676.38,0.29569177]
[1748560334818,0.95176009,677.22,676.38,0.29569177]
[1748560335020,0.95176009,677.21,676.38,0.29569177]
[1748560335214,0.95176009,677.2,676.38,0.29569177]
[1748560335513,0.43436704,677.49,676.38,0.29569177]
[1748560335720,1.38616321,677.48,676.38,0.29569177]
[1748560335918,1.38616321,677.47,676.38,0.29569177]
[1748560336114,1.38616391,677.46,676.38,0.29569177]
[1748560336418,1.38616391,677.45,676.38,0.29569177]
[1748560336618,1.38616391,677.44,676.38,0.29569177]
[1748560336817,1.38616391,677.43,676.38,0.29569177]
[1748560337017,1.38616391,677.42,676.38,0.29569177]
[1748560337216,1.38600866,677.41,676.38,0.29569177]
[1748560337420,1.38600866,677.4,676.38,0.29569177]
[1748560337721,1.38600866,677.39,676.38,0.29569177]
[1748560337920,1.38600866,677.38,676.38,0.29569177]
[1748560338121,1.38600866,677.37,676.38,0.29569177]
[1748560338321,1.38598882,677.36,676.38,0.29569177]
[1748560338522,1.38598882,677.35,676.38,0.29569177]
[1748560338722,1.38602069,677.34,676.38,0.29569177]
[1748560338918,1.38602069,677.33,676.38,0.29569177]
[1748560339122,1.38586865,677.32,676.38,0.29569177]
[1748560339324,1.38586533,677.31,676.38,0.29569177]
[1748560339525,1.38586533,677.3,676.38,0.29569177]
[1748560339725,1.38586533,677.29,676.38,0.29569177]
[1748560340023,1.38552334,677.28,676.38,0.29569177]
[1748560340223,1.38545437,677.27,676.38,0.29569177]
[1748560340423,0.43426581,677.26,676.38,0.29569177]
[1748560340624,0.95116992,677.25,676.38,0.29569177]
[1748560340920,0.95116992,677.24,676.38,0.29569177]
[1748560341123,0.95116992,677.23,676.38,0.29569177]
[1748560341322,0.95120859,677.22,676.38,0.29569177]
[1748560341519,0.95120859,677.21,676.38,0.29569177]
[1748560341727,0.95120859,677.2,676.38,0.29569177]
[1748560342020,0.95041702,677.19,676.38,0.29569177]
[1748560342224,0.95041702,677.18,676.38,0.29569177]
[1748560342424,0.43419937,677.42,676.38,0.29569177]
[1748560342425,0.95041702,677.17,676.38,0.29569177]
[1748560342623,0.95041702,677.16,676.38,0.29569177]
[1748560342819,0.95041702,677.15,676.38,0.29569177]
[1748560343019,0.95041702,677.14,676.38,0.29569177]
[1748560343222,0.95041702,677.13,676.38,0.29569177]
[1748560343422,0.95041702,677.12,676.38,0.29569177]
[1748560343620,0.95041702,677.11,676.38,0.29569177]
[1748560343823,0.29516809,677.58,676.38,0.29569177]
[1748560344023,1.38413499,677.57,676.38,0.29569177]
[1748560344223,1.67924908,677.56,675.95,0.46978049]
[1748560344427,1.67925343,677.55,676.02,0.25710929]
[1748560344625,1.67925779,677.54,676.02,0.25710929]
[1748560344923,1.67926215,677.53,676.02,0.25710929]
[1748560345128,1.6792665,677.52,676.02,0.25710929]
[1748560345324,1.67927086,677.51,676.02,0.25710929]
[1748560345525,1.67856847,677.5,676.02,0.25710929]
[1748560345730,1.67857282,677.49,676.02,0.25710929]
[1748560345923,1.67864682,677.48,676.02,0.25710929]
[1748560346127,1.67864498,677.47,676.02,0.25710929]
[1748560346429,1.67861001,677.46,676.02,0.25710929]
[1748560346630,1.67871247,677.45,676.02,0.72688978]
[1748560346823,1.67871683,677.44,676.0,0.46978049]
[1748560347024,1.67872119,677.43,675.99,0.46978049]
[1748560347325,1.67872119,677.43,675.96,0.29587549]
[1748560347326,1.67860463,677.42,675.97,0.46978049]
[1748560347524,1.67834517,677.41,675.97,0.46978049]
[1748560347725,0.72906433,677.4,675.96,0.76565598]
[1748560347925,1.67790978,677.39,675.96,0.76565598]
[1748560348129,0.29525088,677.39,675.96,0.76565598]
[1748560348330,0.29525088,677.39,675.96,0.29587549]
[1748560348331,1.38265832,677.38,675.96,0.29587549]
[1748560348530,1.67791792,677.37,675.96,0.29587549]
[1748560348728,1.67792228,677.36,675.96,0.29587549]
[1748560348927,1.38265832,677.35,675.96,0.29587549]
[1748560349131,0.29526396,677.36,675.96,0.29587549]
[1748560349329,0.29527268,677.34,675.96,0.29587549]
[1748560349529,1.38227802,677.33,675.96,0.29587549]
[1748560349833,1.67746787,677.32,675.96,0.29587549]
[1748560350027,1.38218647,677.31,675.96,0.29587549]
[1748560350230,1.38218647,677.3,675.96,0.29587549]
[1748560350432,0.2952814,677.32,675.96,0.29587549]
[1748560350433,1.38218647,677.29,675.96,0.29587549]
[1748560350633,1.38169055,677.28,675.96,0.29587549]
[1748560350827,1.38169055,677.27,675.96,0.29587549]
[1748560351027,1.38170044,677.26,675.96,0.29587549]
[1748560351227,0.2952814,677.32,675.96,0.29587549]
[1748560351427,1.38172423,677.31,675.96,0.29587549]
[1748560351631,1.38179701,677.3,675.96,0.29587549]
[1748560351832,1.38157377,677.29,675.96,0.29587549]
[1748560352033,0.2952814,677.32,675.96,0.29587549]
[1748560352034,1.38157377,677.28,675.96,0.29587549]
[1748560352232,1.38157377,677.27,675.96,0.29587549]
[1748560352429,1.38145982,677.26,675.96,0.29587549]
[1748560352729,1.3814132,677.25,675.96,0.29587549]
[1748560352932,1.38141369,677.24,675.96,0.29587549]
[1748560353134,1.38141369,677.23,675.96,0.29587549]
[1748560353330,0.2952814,677.32,675.96,0.29587549]
[1748560353532,1.38141904,677.31,675.96,0.29587549]
[1748560353728,1.38141904,677.3,675.96,0.29587549]
[1748560353932,1.38141904,677.29,675.96,0.29587549]
[1748560354228,1.38138521,677.28,675.96,0.29587549]
[1748560354430,1.38138521,677.27,675.96,0.29587549]
[1748560354734,1.38125591,677.26,675.96,0.29587549]
[1748560354934,1.38126522,677.25,675.96,0.29587549]
[1748560355134,0.94801309,677.24,675.96,0.29587549]
[1748560355327,0.94801309,677.23,675.96,0.29587549]
[1748560355529,0.94801309,677.22,675.96,0.29587549]
[1748560355730,0.94801309,677.21,675.96,0.29587549]
[1748560355932,0.94801309,677.2,675.96,0.29587549]
[1748560356135,0.2952814,677.32,675.96,0.29587549]
[1748560356136,0.94801309,677.19,675.96,0.29587549]
[1748560356432,0.94801309,677.18,675.96,0.29587549]
[1748560356738,0.94802404,677.17,675.96,0.29587549]
[1748560356933,0.94802404,677.16,675.96,0.29587549]
[1748560357131,0.94802404,677.15,675.96,0.29587549]
[1748560357334,0.94802404,677.14,675.96,0.29587549]
[1748560357541,0.43322348,677.27,675.96,0.29587549]
[1748560357837,1.38117077,677.26,675.96,0.29587549]
[1748560358138,1.38112278,677.25,675.96,0.29587549]
[1748560358335,1.38110708,677.24,675.96,0.29587549]
[1748560358637,0.94787002,677.23,675.96,0.29587549]
[1748560358936,0.94776917,677.22,675.96,0.29587549]
[1748560359137,0.94776917,677.21,675.96,0.29587549]
[1748560359330,0.94776917,677.2,675.96,0.29587549]
[1748560359531,0.94776917,677.19,675.96,0.29587549]
[1748560359733,0.94776917,677.18,675.96,0.29587549]
[1748560359936,0.43312934,677.25,675.96,0.29587549]
[1748560360131,1.3805762,677.24,675.96,0.29587549]
[1748560360336,0.94741412,677.23,675.96,0.29587549]
[1748560360533,0.94741494,677.22,675.96,0.29587549]
[1748560360731,0.94741494,677.21,675.96,0.29587549]
[1748560360931,0.94741494,677.2,675.96,0.29587549]
[1748560361136,0.94741494,677.19,675.96,0.29587549]
[1748560361330,0.94718067,677.18,675.96,0.29587549]
[1748560361533,0.43302356,677.25,675.96,0.29587549]
[1748560361732,1.38011276,677.24,675.96,0.29587549]
[1748560361938,0.43302396,677.31,675.96,0.29587549]
[1748560362137,1.38011388,677.3,675.96,0.29587549]
[1748560362338,1.38011388,677.29,675.96,0.29587549]
[1748560362535,1.38011388,677.28,675.96,0.29587549]
[1748560362734,1.38011388,677.27,675.96,0.29587549]
[1748560362936,1.3797691,677.26,675.96,0.29587549]
[1748560363137,1.37978336,677.25,675.96,0.29587549]
[1748560363335,1.37981431,677.24,675.96,0.29587549]
[1748560363537,1.37981431,677.23,675.96,0.29587549]
[1748560363734,0.9467931,677.22,675.96,0.29587549]
[1748560363940,0.9467931,677.21,675.96,0.29587549]
[1748560364137,0.9467931,677.2,675.96,0.29587549]
[1748560364337,0.94676876,677.19,675.96,0.29587549]
[1748560364535,0.94676876,677.18,675.96,0.29587549]
[1748560364737,0.94676876,677.17,675.96,0.29587549]
[1748560364938,0.94671903,677.16,675.96,0.29587549]
[1748560365135,0.2952814,677.32,675.96,0.29587549]
[1748560365136,0.94672501,677.15,675.96,0.29587549]
[1748560365437,0.94672501,677.14,675.96,0.29587549]
[1748560365635,0.94670246,677.13,675.96,0.29587549]
[1748560365837,0.94670246,677.12,675.96,0.29587549]
[1748560366035,0.94670246,677.11,675.96,0.29587549]
[1748560366241,0.94671953,677.1,675.96,0.29587549]
[1748560366441,0.94671953,677.09,675.96,0.29587549]
[1748560366636,0.2952814,677.32,675.96,0.29587549]
[1748560366637,0.94701399,677.08,675.96,0.29587549]
[1748560366840,0.94701464,677.07,675.96,0.29587549]
[1748560367036,0.94701464,677.06,675.96,0.29587549]
[1748560367246,0.94701464,677.05,675.96,0.29587549]
[1748560367437,0.94701464,677.04,675.96,0.29587549]
[1748560367642,0.94701464,677.03,675.96,0.29587549]
[1748560367841,0.94780319,677.02,675.96,0.29587549]
[1748560368142,0.9478045,677.01,675.96,0.29587549]
[1748560368338,0.9478045,677.0,675.96,0.29587549]
[1748560368638,0.94784298,676.99,675.96,0.29587549]
[1748560368843,0.94784298,676.98,675.96,0.29587549]
[1748560369042,0.94784298,676.97,675.96,0.29587549]
[1748560369242,0.94784298,676.96,675.96,0.29587549]
[1748560369443,0.94784298,676.95,675.96,0.29587549]
[1748560369644,0.94784298,676.94,675.96,0.29587549]
[1748560369847,0.94780267,676.93,675.96,0.29587549]
[1748560370145,0.94779996,676.92,675.96,0.29587549]
[1748560370445,0.94779996,676.91,675.96,0.29587549]
[1748560370647,0.94779996,676.9,675.96,0.29587549]
[1748560370945,0.94779996,676.89,675.96,0.29587549]
[1748560371146,0.94779996,676.88,675.96,0.29587549]
[1748560371447,0.94779007,676.87,675.96,0.29587549]
[1748560371748,0.94779007,676.86,675.96,0.29587549]
[1748560372046,0.392,677.07,675.96,0.29587549]
[1748560372246,0.94787743,677.06,675.96,0.29587549]
[1748560372445,0.94787743,677.05,675.96,0.29587549]
[1748560372644,0.94787743,677.04,675.96,0.29587549]
[1748560372841,0.392,677.07,675.96,0.29587549]
[1748560372842,0.94798166,677.03,675.96,0.29587549]
[1748560373041,0.94798166,677.02,675.96,0.29587549]
[1748560373341,0.94798166,677.01,675.96,0.29587549]
[1748560373555,0.94798621,677.0,675.96,0.29587549]
[1748560373846,0.392,677.07,675.96,0.29587549]
[1748560373847,0.94798621,676.99,675.96,0.29587549]
[1748560374050,0.94798621,676.98,675.96,0.29587549]
[1748560374247,0.94798621,676.97,675.96,0.29587549]
[1748560374443,0.94798621,676.96,675.96,0.29587549]
[1748560374643,0.94798621,676.95,675.96,0.29587549]
[1748560374846,0.94798621,676.94,675.96,0.29587549]
[1748560375047,0.94798621,676.93,675.96,0.29587549]
[1748560375244,0.94798621,676.92,675.96,0.29587549]
[1748560375541,0.392,677.07,675.96,0.29587549]
[1748560375744,0.94777464,677.06,675.96,0.29587549]
[1748560375950,0.94764732,677.05,675.96,0.29587549]
[1748560376151,0.94764296,677.04,675.96,0.29587549]
[1748560376352,0.94763136,677.03,675.96,0.29587549]
[1748560376552,0.94762395,677.02,675.96,0.29587549]
[1748560376745,0.94762395,677.01,675.96,0.29587549]
[1748560376947,0.94762395,677.0,675.96,0.29587549]
[1748560377145,0.94762395,676.99,675.96,0.29587549]
[1748560377350,0.392,677.07,675.96,0.29587549]
[1748560377852,0.94785712,677.06,675.96,0.29587549]
[1748560378051,0.392,677.07,675.96,0.29587549]
[1748560378248,0.94785003,677.06,675.96,0.29587549]
[1748560378451,0.392,677.07,675.96,0.29587549]
[1748560378452,0.94785003,677.05,675.96,0.29587549]
[1748560378648,0.94785003,677.04,675.96,0.29587549]
[1748560378851,0.94785003,677.03,675.96,0.29587549]
[1748560379052,0.94793739,677.02,675.96,0.29587549]
[1748560379249,0.94793739,677.01,675.96,0.29587549]
[1748560379449,0.94808792,677.0,675.96,0.29587549]
[1748560379647,0.9480868,676.99,675.96,0.29587549]
[1748560379851,0.94808699,676.98,675.96,0.29587549]
[1748560380151,0.94808699,676.97,675.96,0.29587549]
[1748560380352,0.94808699,676.96,675.96,0.29587549]
[1748560380546,0.94808699,676.95,675.96,0.29587549]
[1748560380748,0.94808699,676.94,675.96,0.29587549]
[1748560380949,0.392,677.07,675.96,0.29587549]
[1748560380950,0.94808699,676.93,675.96,0.29587549]
[1748560381155,0.94808699,676.92,675.96,0.29587549]
[1748560381349,0.392,677.07,675.96,0.29587549]
[1748560381552,0.94830078,677.06,675.96,0.29587549]
[1748560381754,0.94830071,677.05,675.96,0.29587549]
[1748560381951,0.94830071,677.04,675.98,0.46978049]
[1748560382155,0.94829936,677.03,675.98,0.46978049]
[1748560382349,0.94829936,677.02,676.0,0.46978049]
[1748560382552,0.94829936,677.01,676.0,0.46978049]
[1748560382754,0.94829936,677.0,676.01,0.29585361]
[1748560382952,0.9484992,676.99,676.01,0.7656341]
[1748560383155,0.9484992,676.98,676.01,0.7656341]
[1748560383353,0.392,677.07,676.01,0.7656341]
[1748560383553,0.94846898,677.06,676.01,0.7656341]
[1748560383755,0.94846898,677.05,676.01,0.7656341]